Workbook

Sheet Дети до 3-х лет
A1: Прием пищи | B1: Блюдо | C1: Выход | D1: Калорийность | E1: Белки | F1: Жиры | G1: Углеводы
A2: Завтрак | B2: Каша «Дружба» молочная с маслом | C2: 154 | D2: 192 | E2: 0.27 | F2: 4.86 | G2: 34.31
B3: Кофейный напиток с молоком | C3: 160 | D3: 101 | E3: 3.16 | F3: 2.67 | G3: 15.95
B4: Батон с маслом | C4: 27 | D4: 119.75 | E4: 2.02 | F4: 5.22 | G4: 14.4
A5: ИТОГО за завтрак | C5: =SUM(C2:C4) -> 341 | D5: =SUM(D2:D4) -> 412.75 | E5: =SUM(E2:E4) -> 5.45 | F5: =SUM(F2:F4) -> 12.75 | G5: =SUM(G2:G4) -> 64.66
A6: Завтрак 2 | B6: Яблоко | C6: 100 | D6: 101 | E6: 0.4 | F6: 0.4 | G6: 9.8
A7: ИТОГО за завтрак2 | C7: 100 | D7: 101 | E7: 0.4 | F7: 0.4 | G7: 9.8
A8: Обед | B8: Суп крестьянский | C8: 150 | D8: 104 | E8: 2.68 | F8: 2.83 | G8: 17.14
B9: Пюре из свеклы | C9: 110 | D9: 107 | E9: 2.25 | F9: 5.05 | G9: 13.11
B10: Котлеты куринные | C10: 50 | D10: 195 | E10: 9.91 | F10: 11.32 | G10: 10.75
B11: Компот из изюма и чернослива | C11: 150 | D11: 113 | E11: 0.44 | F11: 0.02 | G11: 27.76
B12: Хлеб ржаной | C12: 30 | D12: 69.3 | E12: 1.98 | F12: 0.36 | G12: 10.02
B13: Хлеб пшеничный | C13: 20 | D13: 67.8 | E13: 1.57 | F13: 0.2 | G13: 9.65
A14: ИТОГО за обед | C14: =SUM(C8:C13) -> 510 | D14: =SUM(D8:D13) -> 656.1 | E14: =SUM(E8:E13) -> 18.83 | F14: =SUM(F8:F13) -> 19.78 | G14: =SUM(G8:G13) -> 88.43
A15: Полдник | B15: Сдоба обыкновенная | C15: 70 | D15: 230 | E15: 10.53 | F15: 6.26 | G15: 33.34
B16: Молоко | C16: 150 | D16: 98 | E16: 2.96 | F16: 2.6 | G16: 15.9
A17: ИТОГО за полдник | C17: =SUM(C15:C16) -> 220 | D17: =SUM(D15:D16) -> 328 | E17: 13.49 | F17: 8.86 | G17: 49.24
A18: Ужин | B18: Макароны отварные с маслом и сыром | C18: 190 | D18: 171 | E18: 5.68 | F18: 4.36 | G18: 27.25
B19: Чай с сахаром | C19: 180 | D19: 208 | E19: 8.8 | F19: 19.2 | G19: 0.32
B20: Хлеб пшеничный | C20: 20 | D20: 67 | E20: 2.36 | F20: 2.07 | G20: 2.5
A21: ИТОГО за ужин | C21: =SUM(C18:C20) -> 390 | D21: =SUM(D18:D20) -> 446 | E21: =SUM(E18:E20) -> 16.84 | F21: =SUM(F18:F20) -> 25.63 | G21: =SUM(G18:G20) -> 30.07
A22: ИТОГО за день | C22: =SUM(C5+C6+C14+C17+C21) -> 1561 | D22: =SUM(D5+D7+D14+D17+D21) -> 1943.85 | E22: =SUM(E5+E7+E14+E17+E21) -> 55.01 | F22: =SUM(F5+F14+F17+F21) -> 67.02 | G22: =SUM(G5+G7+G14+G17+G21) -> 242.2

Sheet Дети 3-7 лет
A1: Прием пищи | B1: Блюдо | C1: Выход | D1: Калорийность | E1: Белки | F1: Жиры | G1: Углеводы
A2: Завтрак | B2: Каша «Дружба» молочная с маслом | C2: 173 | D2: 192 | E2: 0.27 | F2: 4.86 | G2: 34.31
B3: Кофейный напиток с молоком | C3: 180 | D3: 101 | E3: 3.16 | F3: 2.67 | G3: 15.95
B4: Батон с маслом | C4: 37 | D4: 129.75 | E4: 2.72 | F4: 5.72 | G4: 16.4
A5: ИТОГО за завтрак | C5: =SUM(C2:C4) -> 390 | D5: =SUM(D2:D4) -> 422.75 | E5: =SUM(E2:E4) -> 6.15 | F5: =SUM(F2:F4) -> 13.25 | G5: =SUM(G2:G4) -> 66.66
A6: Завтрак 2 | B6: Яблоко | C6: 117 | D6: 99 | E6: 0.4 | F6: 0.4 | G6: 9.8
A7: ИТОГО за завтрак2 | C7: 117 | D7: 99 | E7: 0.4 | F7: 0.4 | G7: 9.8
A8: Обед | B8: Суп крестьянский | C8: 180 | D8: 104 | E8: 2.68 | F8: 2.83 | G8: 17.14
B9: Пюре из свеклы | C9: 130 | D9: 107 | E9: 2.25 | F9: 5.05 | G9: 13.11
B10: Котлеты куринные | C10: 70 | D10: 195 | E10: 9.91 | F10: 11.32 | G10: 10.75
B11: Компот из изюма и чернослива | C11: 180 | D11: 113 | E11: 0.44 | F11: 0.02 | G11: 27.76
B12: Хлеб ржаной | C12: 30 | D12: 69.3 | E12: 1.98 | F12: 0.36 | G12: 10.02
B13: Хлеб пшеничный | C13: 20 | D13: 67.8 | E13: 1.57 | F13: 0.2 | G13: 9.65
A14: ИТОГО за обед | C14: =SUM(C8:C13) -> 610 | D14: =SUM(D8:D13) -> 656.1 | E14: =SUM(E8:E13) -> 18.83 | F14: =SUM(F8:F13) -> 19.78 | G14: =SUM(G8:G13) -> 88.43
A15: Полдник | B15: Сдоба обыкновенная | C15: 70 | D15: 230 | E15: 10.53 | F15: 6.26 | G15: 33.34
B16: Молоко | C16: 160 | D16: 98 | E16: 2.96 | F16: 2.6 | G16: 15.9
A17: ИТОГО за полдник | C17: =SUM(C15:C16) -> 230 | D17: =SUM(D15:D16) -> 328 | E17: 13.49 | F17: 8.86 | G17: 49.24
A18: Ужин | B18: Макароны отварные с маслом и сыром | C18: 210 | D18: 171 | E18: 5.68 | F18: 4.36 | G18: 27.25
B19: Чай с сахаром | C19: 200 | D19: 208 | E19: 8.8 | F19: 19.2 | G19: 0.32
B20: Хлеб пшеничный | C20: 30 | D20: 67 | E20: 2.36 | F20: 2.07 | G20: 2.5
A21: ИТОГО за ужин | C21: =SUM(C18:C20) -> 440 | D21: =SUM(D18:D20) -> 446 | E21: =SUM(E18:E20) -> 16.84 | F21: =SUM(F18:F20) -> 25.63 | G21: =SUM(G18:G20) -> 30.07
A22: ИТОГО за день | C22: =SUM(C5+C6+C14+C17+C21) -> 1787 | D22: =SUM(D5+D7+D14+D17+D21) -> 1951.85 | E22: =SUM(E5+E7+E14+E17+E21) -> 55.71 | F22: =SUM(F5+F14+F17+F21) -> 67.52 | G22: =SUM(G5+G7+G14+G17+G21) -> 244.2
